[Event "Titled Tuesday Blitz March 01 Early 2022"]
[White "Tomiello, Mateus Costamilan"]
[Black "Selkirk, Rebecca"]
[WhiteFideId "22701958"]
[BlackFideId "14306514"]
[WhiteElo "1975"]
[BlackElo "1649"]
[Result "1-0"]
[Round "07"]
[TimeControl "180+1"]
[Date "2022.03.01"]
[WhiteClock "0:00:07"]
[BlackClock "0:00:31"]

1. e4 {[%clk 0:03:00]}  c6 {[%clk 0:03:00]} 2. d4 {[%clk 0:03:00]}  d5 {[%clk 0:03:01]} 3. Nc3 {[%clk 0:03:01]}  dxe4 {[%clk 0:03:01]} 4. Nxe4 {[%clk 0:03:01]}  Nd7 {[%clk 0:03:02]} 5. Ng5 {[%clk 0:03:01]}  Ngf6 {[%clk 0:03:01]} 6. Bd3 {[%clk 0:03:01]}  e6 {[%clk 0:03:01]} 7. Qe2 {[%clk 0:03:01]}  Nb6 {[%clk 0:02:53]} 8. N1f3 {[%clk 0:02:59]}  Be7 {[%clk 0:02:50]} 9. O-O {[%clk 0:02:57]}  O-O {[%clk 0:02:28]} 10. c3 {[%clk 0:02:48]}  h6 {[%clk 0:02:25]} 11. Ne4 {[%clk 0:02:28]}  Nbd5 {[%clk 0:02:19]} 12. Ne5 {[%clk 0:01:56]}  Nxe4 {[%clk 0:02:17]} 13. Qxe4 {[%clk 0:01:55]}  Nf6 {[%clk 0:02:17]} 14. Qe2 {[%clk 0:01:54]}  c5 {[%clk 0:02:15]} 15. Be3 {[%clk 0:01:52]}  b6 {[%clk 0:02:12]} 16. Nc6 {[%clk 0:01:37]}  Qc7 {[%clk 0:02:07]} 17. Nxe7+ {[%clk 0:01:36]}  Qxe7 {[%clk 0:02:08]} 18. dxc5 {[%clk 0:01:37]}  bxc5 {[%clk 0:02:07]} 19. Rfd1 {[%clk 0:01:30]}  Bb7 {[%clk 0:02:04]} 20. f3 {[%clk 0:01:30]}  Nd5 {[%clk 0:02:01]} 21. Bd2 {[%clk 0:01:30]}  Rad8 {[%clk 0:01:58]} 22. Be4 {[%clk 0:01:30]}  Rfe8 {[%clk 0:01:51]} 23. Be1 {[%clk 0:01:17]}  Nf6 {[%clk 0:01:36]} 24. Bc2 {[%clk 0:01:13]}  Nd5 {[%clk 0:01:20]} 25. Qe4 {[%clk 0:01:03]}  Qg5 {[%clk 0:01:09]} 26. h4 {[%clk 0:00:44]}  Qe3+ {[%clk 0:00:58]} 27. Bf2 {[%clk 0:00:38]}  Qxe4 {[%clk 0:00:54]} 28. Bxe4 {[%clk 0:00:37]}  Ba8 {[%clk 0:00:51]} 29. Bxc5 {[%clk 0:00:36]}  Nf4 {[%clk 0:00:46]} 30. Bc2 {[%clk 0:00:30]}  Rb8 {[%clk 0:00:39]} 31. b3 {[%clk 0:00:26]}  Ne2+ {[%clk 0:00:38]} 32. Kf2 {[%clk 0:00:24]}  Nxc3 {[%clk 0:00:39]} 33. Rd7 {[%clk 0:00:21]}  Nd5 {[%clk 0:00:38]} 34. Rxa7 {[%clk 0:00:20]}  Rbc8 {[%clk 0:00:38]} 35. b4 {[%clk 0:00:17]}  Nxb4 {[%clk 0:00:37]} 36. Rxa8 {[%clk 0:00:18]}  Rxa8 {[%clk 0:00:36]} 37. Bxb4 {[%clk 0:00:17]}  Rec8 {[%clk 0:00:36]} 38. Bb3 {[%clk 0:00:17]}  Rab8 {[%clk 0:00:36]} 39. Bd6 {[%clk 0:00:17]}  Ra8 {[%clk 0:00:36]} 40. Be5 {[%clk 0:00:17]}  Rc5 {[%clk 0:00:35]} 41. Bd4 {[%clk 0:00:16]}  Rb5 {[%clk 0:00:35]} 42. Rd1 {[%clk 0:00:16]}  Rd8 {[%clk 0:00:32]} 43. Ke2 {[%clk 0:00:16]}  e5 {[%clk 0:00:28]} 44. Be3 {[%clk 0:00:16]}  Rxd1 {[%clk 0:00:28]} 45. Kxd1 {[%clk 0:00:17]}  Kf8 {[%clk 0:00:26]} 46. Kc2 {[%clk 0:00:17]}  Ke7 {[%clk 0:00:26]} 47. Kc3 {[%clk 0:00:18]}  f6 {[%clk 0:00:25]} 48. a4 {[%clk 0:00:18]}  Rb8 {[%clk 0:00:25]} 49. Bc5+ {[%clk 0:00:18]}  Kd7 {[%clk 0:00:24]} 50. Bc4 {[%clk 0:00:16]}  Kc6 {[%clk 0:00:25]} 51. Be3 {[%clk 0:00:16]}  Ra8 {[%clk 0:00:24]} 52. Kb4 {[%clk 0:00:16]}  Rb8+ {[%clk 0:00:24]} 53. Bb5+ {[%clk 0:00:16]}  Kc7 {[%clk 0:00:24]} 54. a5 {[%clk 0:00:17]}  g5 {[%clk 0:00:20]} 55. hxg5 {[%clk 0:00:16]}  hxg5 {[%clk 0:00:21]} 56. a6 {[%clk 0:00:16]}  Ra8 {[%clk 0:00:20]} 57. a7 {[%clk 0:00:16]}  Kb7 {[%clk 0:00:20]} 58. Bd3 {[%clk 0:00:16]}  Rd8 {[%clk 0:00:17]} 59. Be4+ {[%clk 0:00:16]}  Ka6 {[%clk 0:00:16]} 60. a8=Q+ {[%clk 0:00:16]}  Rxa8 {[%clk 0:00:17]} 61. Bxa8 {[%clk 0:00:15]}  f5 {[%clk 0:00:17]} 62. Bxg5 {[%clk 0:00:14]}  e4 {[%clk 0:00:17]} 63. fxe4 {[%clk 0:00:14]}  fxe4 {[%clk 0:00:17]} 64. Bxe4 {[%clk 0:00:15]}  Kb6 {[%clk 0:00:18]} 65. Kc4 {[%clk 0:00:15]}  Kc7 {[%clk 0:00:18]} 66. Kd5 {[%clk 0:00:15]}  Kd7 {[%clk 0:00:19]} 67. Bf5+ {[%clk 0:00:16]}  Ke8 {[%clk 0:00:19]} 68. Ke6 {[%clk 0:00:16]}  Kf8 {[%clk 0:00:20]} 69. Bh6+ {[%clk 0:00:15]}  Kg8 {[%clk 0:00:20]} 70. Bg6 {[%clk 0:00:15]}  Kh8 {[%clk 0:00:21]} 71. Kf6 {[%clk 0:00:12]}  Kg8 {[%clk 0:00:22]} 72. Bh5 {[%clk 0:00:11]}  Kh8 {[%clk 0:00:23]} 73. Bg7+ {[%clk 0:00:12]}  Kg8 {[%clk 0:00:24]} 74. Bf7+ {[%clk 0:00:12]}  Kh7 {[%clk 0:00:24]} 75. Bg6+ {[%clk 0:00:08]}  Kg8 {[%clk 0:00:25]} 76. Bh6 {[%clk 0:00:07]}  Kh8 {[%clk 0:00:25]} 77. g4 {[%clk 0:00:08]}  Kg8 {[%clk 0:00:26]} 78. Kg5 {[%clk 0:00:08]}  Kh8 {[%clk 0:00:27]} 79. Kh5 {[%clk 0:00:08]}  Kg8 {[%clk 0:00:28]} 80. Bf5 {[%clk 0:00:08]}  Kh8 {[%clk 0:00:29]} 81. g5 {[%clk 0:00:09]}  Kg8 {[%clk 0:00:30]} 82. g6 {[%clk 0:00:09]}  Kh8 {[%clk 0:00:31]} 83. g7+ {[%clk 0:00:09]}  Kg8 {[%clk 0:00:32]} 84. Be6+ {[%clk 0:00:09]}  Kh7 {[%clk 0:00:31]} 85. g8=Q# {[%clk 0:00:07]} 1-0


[Site "https://www.chess.com"]

[Event "Titled Tuesday Blitz March 01 Early 2022"]
[White "Vlassov, Nikolai"]
[Black "Ter-Sahakyan, Samvel"]
[WhiteFideId "4103360"]
[BlackFideId "13302531"]
[WhiteElo "2407"]
[BlackElo "2592"]
[Result "0-1"]
[Round "07"]
[TimeControl "180+1"]
[Date "2022.03.01"]
[WhiteClock "0:00:45"]
[BlackClock "0:01:15"]

1. e4 {[%clk 0:03:00]}  c6 {[%clk 0:02:59]} 2. d4 {[%clk 0:03:01]}  d5 {[%clk 0:03:00]} 3. e5 {[%clk 0:03:01]}  Bf5 {[%clk 0:02:59]} 4. Nc3 {[%clk 0:03:02]}  e6 {[%clk 0:02:58]} 5. g4 {[%clk 0:03:02]}  Bg6 {[%clk 0:02:59]} 6. Nge2 {[%clk 0:03:03]}  h5 {[%clk 0:02:31]} 7. Nf4 {[%clk 0:03:02]}  Bh7 {[%clk 0:02:31]} 8. Nxh5 {[%clk 0:03:02]}  c5 {[%clk 0:02:29]} 9. dxc5 {[%clk 0:03:02]}  Nc6 {[%clk 0:02:22]} 10. Bb5 {[%clk 0:03:00]}  Bxc5 {[%clk 0:02:08]} 11. Nxg7+ {[%clk 0:03:00]}  Kf8 {[%clk 0:02:08]} 12. Nxe6+ {[%clk 0:02:53]}  fxe6 {[%clk 0:02:09]} 13. Qf3+ {[%clk 0:02:52]}  Ke8 {[%clk 0:02:03]} 14. Bxc6+ {[%clk 0:02:39]}  bxc6 {[%clk 0:02:02]} 15. Bf4 {[%clk 0:02:20]}  Rb8 {[%clk 0:01:48]} 16. O-O-O {[%clk 0:02:16]}  Qa5 {[%clk 0:01:37]} 17. h4 {[%clk 0:01:09]}  Qb4 {[%clk 0:01:28]} 18. b3 {[%clk 0:01:06]}  Qa3+ {[%clk 0:01:28]} 19. Kd2 {[%clk 0:01:00]}  Bb4 {[%clk 0:01:28]} 20. Ke2 {[%clk 0:00:58]}  Qb2 {[%clk 0:01:24]} 21. Bd2 {[%clk 0:00:53]}  Qxc2 {[%clk 0:01:20]} 22. Kf1 {[%clk 0:00:45]}  Bxc3 {[%clk 0:01:15]} 23. Bxc3 {[%clk 0:00:45]}  Be4 {[%clk 0:01:15]} 0-1


[Site "https://www.chess.com"]

[Event "Titled Tuesday Blitz March 01 Early 2022"]
[White "Warmerdam, Max"]
[Black "Belyakov, Bogdan"]
[WhiteFideId "1048104"]
[BlackFideId "24104795"]
[WhiteElo "2537"]
[BlackElo "2407"]
[Result "1-0"]
[Round "07"]
[TimeControl "180+1"]
[Date "2022.03.01"]
[WhiteClock "0:00:27"]
[BlackClock "0:00:06"]

1. e4 {[%clk 0:03:00]}  e5 {[%clk 0:02:56]} 2. Nf3 {[%clk 0:03:01]}  Nc6 {[%clk 0:02:56]} 3. Bb5 {[%clk 0:03:01]}  Nf6 {[%clk 0:02:56]} 4. d3 {[%clk 0:03:01]}  Bc5 {[%clk 0:02:56]} 5. Bxc6 {[%clk 0:03:01]}  dxc6 {[%clk 0:02:56]} 6. O-O {[%clk 0:03:02]}  Nd7 {[%clk 0:02:54]} 7. Nc3 {[%clk 0:03:00]}  O-O {[%clk 0:02:54]} 8. Be3 {[%clk 0:03:01]}  Bd6 {[%clk 0:02:53]} 9. a4 {[%clk 0:03:01]}  c5 {[%clk 0:02:53]} 10. Nd2 {[%clk 0:03:00]}  Nb8 {[%clk 0:02:50]} 11. Nc4 {[%clk 0:02:58]}  Nc6 {[%clk 0:02:50]} 12. Nxd6 {[%clk 0:02:56]}  cxd6 {[%clk 0:02:50]} 13. f4 {[%clk 0:02:57]}  exf4 {[%clk 0:02:32]} 14. Bxf4 {[%clk 0:02:57]}  f5 {[%clk 0:02:28]} 15. Qd2 {[%clk 0:02:49]}  Nd4 {[%clk 0:02:19]} 16. Be3 {[%clk 0:02:49]}  fxe4 {[%clk 0:02:15]} 17. dxe4 {[%clk 0:02:47]}  Nc6 {[%clk 0:01:42]} 18. Qd5+ {[%clk 0:02:22]}  Kh8 {[%clk 0:01:41]} 19. Bg5 {[%clk 0:02:23]}  Qe8 {[%clk 0:00:58]} 20. Rxf8+ {[%clk 0:01:49]}  Qxf8 {[%clk 0:00:58]} 21. Rf1 {[%clk 0:01:30]}  Qe8 {[%clk 0:00:56]} 22. Nb5 {[%clk 0:01:23]}  Be6 {[%clk 0:00:52]} 23. Qxd6 {[%clk 0:01:21]}  Bc4 {[%clk 0:00:37]} 24. Nc7 {[%clk 0:01:13]}  Qg8 {[%clk 0:00:34]} 25. Nxa8 {[%clk 0:01:08]}  Bxf1 {[%clk 0:00:33]} 26. Kxf1 {[%clk 0:01:09]}  Qxa8 {[%clk 0:00:33]} 27. Qxc5 {[%clk 0:01:09]}  h6 {[%clk 0:00:33]} 28. Bd2 {[%clk 0:01:07]}  Qb8 {[%clk 0:00:31]} 29. g3 {[%clk 0:00:59]}  Qe8 {[%clk 0:00:30]} 30. Bc3 {[%clk 0:00:57]}  Kg8 {[%clk 0:00:16]} 31. Qd5+ {[%clk 0:00:57]}  Kh8 {[%clk 0:00:16]} 32. Ke2 {[%clk 0:00:45]}  Nd8 {[%clk 0:00:14]} 33. Kd2 {[%clk 0:00:43]}  a6 {[%clk 0:00:14]} 34. Kc1 {[%clk 0:00:42]}  Nc6 {[%clk 0:00:15]} 35. Kb1 {[%clk 0:00:42]}  Kh7 {[%clk 0:00:13]} 36. Qf5+ {[%clk 0:00:41]}  Kh8 {[%clk 0:00:13]} 37. g4 {[%clk 0:00:40]}  Qd8 {[%clk 0:00:09]} 38. Qf7 {[%clk 0:00:37]}  Nd4 {[%clk 0:00:08]} 39. Qd5 {[%clk 0:00:26]}  Qxd5 {[%clk 0:00:08]} 40. exd5 {[%clk 0:00:27]}  Ne2 {[%clk 0:00:06]} 41. d6 {[%clk 0:00:27]}  Nf4 {[%clk 0:00:05]} 42. d7 {[%clk 0:00:27]}  Ne6 {[%clk 0:00:06]} 43. Ba5 {[%clk 0:00:27]} 1-0


[Site "https://www.chess.com"]

[Event "Titled Tuesday Blitz March 01 Early 2022"]
[White "Wong, Yinn Long"]
[Black "Agibileg, Uurtsaikh"]
[WhiteFideId "5707684"]
[BlackFideId "4901606"]
[WhiteElo "2055"]
[BlackElo "2205"]
[Result "1-0"]
[Round "07"]
[TimeControl "180+1"]
[Date "2022.03.01"]
[WhiteClock "0:01:02"]
[BlackClock "0:00:04"]

1. d4 {[%clk 0:03:00]}  Nf6 {[%clk 0:02:58]} 2. Bf4 {[%clk 0:03:00]}  g6 {[%clk 0:02:58]} 3. Nc3 {[%clk 0:03:01]}  Bg7 {[%clk 0:02:58]} 4. e4 {[%clk 0:03:01]}  c6 {[%clk 0:02:56]} 5. e5 {[%clk 0:02:57]}  Nd5 {[%clk 0:02:56]} 6. Nxd5 {[%clk 0:02:56]}  cxd5 {[%clk 0:02:57]} 7. Nf3 {[%clk 0:02:54]}  O-O {[%clk 0:02:45]} 8. Bd3 {[%clk 0:02:52]}  d6 {[%clk 0:02:41]} 9. exd6 {[%clk 0:02:52]}  exd6 {[%clk 0:02:41]} 10. O-O {[%clk 0:02:50]}  Nc6 {[%clk 0:02:40]} 11. c3 {[%clk 0:02:49]}  Bg4 {[%clk 0:02:40]} 12. h3 {[%clk 0:02:49]}  Bc8 {[%clk 0:02:30]} 13. Qd2 {[%clk 0:02:44]}  b6 {[%clk 0:02:24]} 14. Rfe1 {[%clk 0:02:38]}  Bb7 {[%clk 0:02:22]} 15. Bh6 {[%clk 0:02:34]}  Re8 {[%clk 0:02:08]} 16. Bxg7 {[%clk 0:02:33]}  Kxg7 {[%clk 0:02:09]} 17. Qf4 {[%clk 0:02:24]}  Qf6 {[%clk 0:02:05]} 18. Qg3 {[%clk 0:02:20]}  Na5 {[%clk 0:01:44]} 19. Nh2 {[%clk 0:01:56]}  h5 {[%clk 0:01:41]} 20. Nf1 {[%clk 0:01:54]}  Nc4 {[%clk 0:01:39]} 21. Bxc4 {[%clk 0:01:44]}  dxc4 {[%clk 0:01:39]} 22. Rxe8 {[%clk 0:01:45]}  Rxe8 {[%clk 0:01:39]} 23. Ne3 {[%clk 0:01:45]}  h4 {[%clk 0:00:39]} 24. Qh2 {[%clk 0:01:37]}  b5 {[%clk 0:00:30]} 25. a4 {[%clk 0:01:21]}  a6 {[%clk 0:00:30]} 26. axb5 {[%clk 0:01:21]}  axb5 {[%clk 0:00:31]} 27. Ng4 {[%clk 0:01:13]}  Qe6 {[%clk 0:00:15]} 28. Qf4 {[%clk 0:01:10]}  Qf5 {[%clk 0:00:07]} 29. Qh6+ {[%clk 0:01:02]}  Kg8 {[%clk 0:00:06]} 30. Qxh4 {[%clk 0:01:02]}  Re2 {[%clk 0:00:04]} 31. Nh6+ {[%clk 0:01:02]} 1-0


[Site "https://www.chess.com"]

[Event "Titled Tuesday Blitz March 01 Early 2022"]
[White "Yang, Kaiqi"]
[Black "Kett, Tim"]
[WhiteFideId "8604398"]
[BlackFideId "1801210"]
[WhiteElo "2373"]
[BlackElo "2098"]
[Result "1-0"]
[Round "07"]
[TimeControl "180+1"]
[Date "2022.03.01"]
[WhiteClock "0:00:12"]
[BlackClock "0:00:01"]

1. e4 {[%clk 0:03:00]}  e5 {[%clk 0:02:54]} 2. Nc3 {[%clk 0:03:00]}  d6 {[%clk 0:02:51]} 3. f4 {[%clk 0:02:59]}  f5 {[%clk 0:02:50]} 4. fxe5 {[%clk 0:02:50]}  dxe5 {[%clk 0:02:48]} 5. Nf3 {[%clk 0:02:49]}  fxe4 {[%clk 0:02:39]} 6. Nxe4 {[%clk 0:02:48]}  Nf6 {[%clk 0:02:40]} 7. Bd3 {[%clk 0:02:46]}  Nc6 {[%clk 0:02:36]} 8. O-O {[%clk 0:02:40]}  Bg4 {[%clk 0:02:19]} 9. Qe1 {[%clk 0:02:24]}  Bxf3 {[%clk 0:02:04]} 10. Rxf3 {[%clk 0:02:17]}  Nb4 {[%clk 0:01:46]} 11. Nxf6+ {[%clk 0:01:47]}  gxf6 {[%clk 0:01:45]} 12. Be4 {[%clk 0:01:40]}  Qd4+ {[%clk 0:01:38]} 13. Kh1 {[%clk 0:01:36]}  Nd5 {[%clk 0:01:18]} 14. c3 {[%clk 0:01:29]}  Qc5 {[%clk 0:01:13]} 15. d4 {[%clk 0:01:24]}  Qd6 {[%clk 0:01:10]} 16. dxe5 {[%clk 0:01:19]}  fxe5 {[%clk 0:01:09]} 17. Bg5 {[%clk 0:01:14]}  Be7 {[%clk 0:01:04]} 18. Rd1 {[%clk 0:01:01]}  Bxg5 {[%clk 0:00:55]} 19. Rxd5 {[%clk 0:01:00]}  Qe7 {[%clk 0:00:49]} 20. Rxe5 {[%clk 0:00:57]}  Qxe5 {[%clk 0:00:45]} 21. Bc6+ {[%clk 0:00:57]}  bxc6 {[%clk 0:00:41]} 22. Qxe5+ {[%clk 0:00:57]}  Be7 {[%clk 0:00:40]} 23. Qe6 {[%clk 0:00:53]}  Rb8 {[%clk 0:00:22]} 24. Qxc6+ {[%clk 0:00:48]}  Kd8 {[%clk 0:00:21]} 25. g3 {[%clk 0:00:31]}  Bd6 {[%clk 0:00:10]} 26. Rf7 {[%clk 0:00:29]}  Kc8 {[%clk 0:00:09]} 27. Qd7+ {[%clk 0:00:18]}  Kb7 {[%clk 0:00:08]} 28. Qb5+ {[%clk 0:00:17]}  Ka8 {[%clk 0:00:06]} 29. Qc6+ {[%clk 0:00:17]}  Rb7 {[%clk 0:00:06]} 30. a4 {[%clk 0:00:17]}  Kb8 {[%clk 0:00:04]} 31. b4 {[%clk 0:00:17]}  Rb6 {[%clk 0:00:04]} 32. Qd5 {[%clk 0:00:17]}  a5 {[%clk 0:00:04]} 33. b5 {[%clk 0:00:16]}  Rd8 {[%clk 0:00:03]} 34. c4 {[%clk 0:00:15]}  Be7 {[%clk 0:00:01]} 35. Qe4 {[%clk 0:00:12]} 1-0


[Site "https://www.chess.com"]

[Event "Titled Tuesday Blitz March 01 Early 2022"]
[White "Yushko, Olga"]
[Black "Omariev, Maksim"]
[WhiteFideId "14114500"]
[BlackFideId "4193423"]
[WhiteElo "2028"]
[BlackElo "2426"]
[Result "0-1"]
[Round "07"]
[TimeControl "180+1"]
[Date "2022.03.01"]
[WhiteClock "0:00:03"]
[BlackClock "0:00:06"]

1. d4 {[%clk 0:03:00]}  a6 {[%clk 0:02:37]} 2. c4 {[%clk 0:02:58]}  b6 {[%clk 0:02:37]} 3. Nc3 {[%clk 0:02:58]}  c6 {[%clk 0:02:38]} 4. Nf3 {[%clk 0:02:58]}  d6 {[%clk 0:02:39]} 5. Bf4 {[%clk 0:02:57]}  e6 {[%clk 0:02:39]} 6. e3 {[%clk 0:02:58]}  f6 {[%clk 0:02:40]} 7. Bd3 {[%clk 0:02:58]}  g6 {[%clk 0:02:41]} 8. O-O {[%clk 0:02:57]}  Bb7 {[%clk 0:02:41]} 9. b4 {[%clk 0:02:51]}  Nd7 {[%clk 0:02:41]} 10. Qc2 {[%clk 0:02:51]}  Ne7 {[%clk 0:02:40]} 11. Bxd6 {[%clk 0:02:50]}  Bg7 {[%clk 0:02:39]} 12. a4 {[%clk 0:02:34]}  O-O {[%clk 0:02:37]} 13. a5 {[%clk 0:02:34]}  b5 {[%clk 0:02:36]} 14. cxb5 {[%clk 0:02:34]}  cxb5 {[%clk 0:02:37]} 15. Rac1 {[%clk 0:02:32]}  Rc8 {[%clk 0:02:38]} 16. Qb3 {[%clk 0:02:32]}  Re8 {[%clk 0:02:27]} 17. Qxe6+ {[%clk 0:02:30]}  Kh8 {[%clk 0:02:27]} 18. Qf7 {[%clk 0:02:17]}  Rxc3 {[%clk 0:02:20]} 19. Rxc3 {[%clk 0:02:05]}  Nd5 {[%clk 0:02:17]} 20. Rc2 {[%clk 0:02:02]}  f5 {[%clk 0:01:04]} 21. Bxf5 {[%clk 0:01:31]}  gxf5 {[%clk 0:00:57]} 22. Qxf5 {[%clk 0:01:32]}  N7f6 {[%clk 0:00:43]} 23. Be5 {[%clk 0:01:25]}  Rf8 {[%clk 0:00:34]} 24. Ng5 {[%clk 0:01:19]}  Bc8 {[%clk 0:00:22]} 25. Qf3 {[%clk 0:00:43]}  Nxb4 {[%clk 0:00:14]} 26. Rc7 {[%clk 0:00:25]}  Kg8 {[%clk 0:00:07]} 27. Qg3 {[%clk 0:00:19]}  Bg4 {[%clk 0:00:02]} 28. h3 {[%clk 0:00:15]}  Nbd5 {[%clk 0:00:02]} 29. Rxg7+ {[%clk 0:00:14]}  Kxg7 {[%clk 0:00:03]} 30. hxg4 {[%clk 0:00:14]}  Qxa5 {[%clk 0:00:02]} 31. Ne6+ {[%clk 0:00:14]}  Kf7 {[%clk 0:00:03]} 32. Nxf8 {[%clk 0:00:14]}  Kxf8 {[%clk 0:00:04]} 33. Qh4 {[%clk 0:00:14]}  Kg7 {[%clk 0:00:04]} 34. Qg5+ {[%clk 0:00:14]}  Kf7 {[%clk 0:00:04]} 35. Rc1 {[%clk 0:00:12]}  Qb6 {[%clk 0:00:04]} 36. Qh6 {[%clk 0:00:11]}  Nb4 {[%clk 0:00:04]} 37. g5 {[%clk 0:00:11]}  Nd7 {[%clk 0:00:03]} 38. Qg7+ {[%clk 0:00:10]}  Ke6 {[%clk 0:00:03]} 39. d5+ {[%clk 0:00:09]}  Nxd5 {[%clk 0:00:03]} 40. Qg8+ {[%clk 0:00:10]}  Kxe5 {[%clk 0:00:03]} 41. f4+ {[%clk 0:00:09]}  Ke4 {[%clk 0:00:03]} 42. Qe8+ {[%clk 0:00:09]}  Kd3 {[%clk 0:00:03]} 43. Qxd7 {[%clk 0:00:09]}  Qxe3+ {[%clk 0:00:04]} 44. Kh2 {[%clk 0:00:09]}  Qxf4+ {[%clk 0:00:04]} 45. Kh3 {[%clk 0:00:09]}  Qe3+ {[%clk 0:00:03]} 46. g3 {[%clk 0:00:08]}  Qxc1 {[%clk 0:00:03]} 47. Qxd5+ {[%clk 0:00:09]}  Kc3 {[%clk 0:00:03]} 48. Qc6+ {[%clk 0:00:08]}  Kb2 {[%clk 0:00:03]} 49. Qxa6 {[%clk 0:00:08]}  Qxg5 {[%clk 0:00:03]} 50. Qb7 {[%clk 0:00:08]}  Kb3 {[%clk 0:00:03]} 51. Qf3+ {[%clk 0:00:07]}  Ka4 {[%clk 0:00:03]} 52. Qe4+ {[%clk 0:00:08]}  b4 {[%clk 0:00:03]} 53. Qc6+ {[%clk 0:00:08]}  Ka3 {[%clk 0:00:03]} 54. Qa6+ {[%clk 0:00:08]}  Kb2 {[%clk 0:00:04]} 55. Qe2+ {[%clk 0:00:08]}  Ka3 {[%clk 0:00:03]} 56. Qd3+ {[%clk 0:00:09]}  b3 {[%clk 0:00:04]} 57. Qxh7 {[%clk 0:00:09]}  b2 {[%clk 0:00:04]} 58. Qa7+ {[%clk 0:00:09]}  Kb3 {[%clk 0:00:04]} 59. Qb6+ {[%clk 0:00:09]}  Kc3 {[%clk 0:00:04]} 60. Qc6+ {[%clk 0:00:08]}  Kb4 {[%clk 0:00:05]} 61. Qe4+ {[%clk 0:00:08]}  Kb3 {[%clk 0:00:05]} 62. Qd3+ {[%clk 0:00:08]}  Ka2 {[%clk 0:00:05]} 63. Qc2 {[%clk 0:00:08]}  Qh5+ {[%clk 0:00:04]} 64. Kg2 {[%clk 0:00:08]}  Qd5+ {[%clk 0:00:05]} 65. Kh3 {[%clk 0:00:08]}  Qb3 {[%clk 0:00:06]} 66. Qc7 {[%clk 0:00:07]}  Ka1 {[%clk 0:00:06]} 67. Qe5 {[%clk 0:00:06]}  Ka2 {[%clk 0:00:02]} 68. Qe2 {[%clk 0:00:06]}  Ka3 {[%clk 0:00:02]} 69. Qa6+ {[%clk 0:00:06]}  Kb4 {[%clk 0:00:02]} 70. Qb6+ {[%clk 0:00:06]}  Kc3 {[%clk 0:00:02]} 71. Qc5+ {[%clk 0:00:06]}  Qc4 {[%clk 0:00:03]} 72. Qe3+ {[%clk 0:00:07]}  Kb4 {[%clk 0:00:03]} 73. Qd2+ {[%clk 0:00:06]}  Qc3 {[%clk 0:00:03]} 74. Qd6+ {[%clk 0:00:07]}  Kc4 {[%clk 0:00:03]} 75. Qc6+ {[%clk 0:00:07]}  Kd3 {[%clk 0:00:03]} 76. Qf3+ {[%clk 0:00:06]}  Kc2 {[%clk 0:00:04]} 77. Qe2+ {[%clk 0:00:07]}  Qd2 {[%clk 0:00:04]} 78. Qc4+ {[%clk 0:00:07]}  Kd1 {[%clk 0:00:04]} 79. Qb3+ {[%clk 0:00:06]}  Qc2 {[%clk 0:00:04]} 80. Qf3+ {[%clk 0:00:07]}  Kd2 {[%clk 0:00:04]} 81. Qf2+ {[%clk 0:00:06]}  Kd3 {[%clk 0:00:04]} 82. Qf5+ {[%clk 0:00:07]}  Kc3 {[%clk 0:00:05]} 83. Qc5+ {[%clk 0:00:07]}  Kd2 {[%clk 0:00:05]} 84. Qd4+ {[%clk 0:00:07]}  Kc1 {[%clk 0:00:06]} 85. Qe3+ {[%clk 0:00:07]}  Kb1 {[%clk 0:00:06]} 86. g4 {[%clk 0:00:07]}  Ka1 {[%clk 0:00:04]} 87. Qa3+ {[%clk 0:00:07]}  Kb1 {[%clk 0:00:04]} 88. g5 {[%clk 0:00:07]}  Kc1 {[%clk 0:00:02]} 89. Kh4 {[%clk 0:00:06]}  Kd2 {[%clk 0:00:02]} 90. Qb4+ {[%clk 0:00:05]}  Qc3 {[%clk 0:00:02]} 91. Qf4+ {[%clk 0:00:05]}  Kc2 {[%clk 0:00:02]} 92. Qf2+ {[%clk 0:00:05]}  Kb3 {[%clk 0:00:03]} 93. Qb6+ {[%clk 0:00:05]}  Qb4+ {[%clk 0:00:03]} 94. Qxb4+ {[%clk 0:00:05]}  Kxb4 {[%clk 0:00:04]} 95. g6 {[%clk 0:00:06]}  b1=Q {[%clk 0:00:05]} 96. Kg5 {[%clk 0:00:06]}  Qg1+ {[%clk 0:00:05]} 97. Kf6 {[%clk 0:00:06]}  Qb6+ {[%clk 0:00:05]} 98. Kf7 {[%clk 0:00:06]}  Qc7+ {[%clk 0:00:05]} 99. Kf8 {[%clk 0:00:06]}  Qd8+ {[%clk 0:00:06]} 100. Kf7 {[%clk 0:00:06]}  Qd7+ {[%clk 0:00:06]} 101. Kf8 {[%clk 0:00:07]}  Qd6+ {[%clk 0:00:06]} 102. Kf7 {[%clk 0:00:07]}  Qf4+ {[%clk 0:00:06]} 103. Kg8 {[%clk 0:00:05]}  Kc5 {[%clk 0:00:05]} 104. g7 {[%clk 0:00:05]}  Qf6 {[%clk 0:00:05]} 105. Kh7 {[%clk 0:00:05]}  Qf7 {[%clk 0:00:05]} 106. Kh8 {[%clk 0:00:05]}  Qh5+ {[%clk 0:00:06]} 107. Kg8 {[%clk 0:00:05]}  Kd6 {[%clk 0:00:07]} 108. Kf8 {[%clk 0:00:06]}  Qf5+ {[%clk 0:00:07]} 109. Ke8 {[%clk 0:00:05]}  Qg6+ {[%clk 0:00:06]} 110. Kf8 {[%clk 0:00:05]}  Qf6+ {[%clk 0:00:07]} 111. Kg8 {[%clk 0:00:05]}  Ke6 {[%clk 0:00:07]} 112. Kh7 {[%clk 0:00:06]}  Qh4+ {[%clk 0:00:07]} 113. Kg6 {[%clk 0:00:05]}  Qg4+ {[%clk 0:00:07]} 114. Kh7 {[%clk 0:00:05]}  Kf7 {[%clk 0:00:06]} 115. Kh6 {[%clk 0:00:03]}  Qg6# {[%clk 0:00:06]} 0-1


[Site "https://www.chess.com"]

[Event "Titled Tuesday Blitz March 01 Early 2022"]
[White "Zainullina, Nataliya"]
[Black "Jakubowska, Anna"]
[WhiteFideId "4145488"]
[BlackFideId "1121952"]
[WhiteElo "2058"]
[BlackElo "1924"]
[Result "0-1"]
[Round "07"]
[TimeControl "180+1"]
[Date "2022.03.01"]
[WhiteClock "0:00:09"]
[BlackClock "0:01:20"]

1. e4 {[%clk 0:02:56]}  Nf6 {[%clk 0:02:59]} 2. d3 {[%clk 0:02:55]}  e5 {[%clk 0:02:58]} 3. Nd2 {[%clk 0:02:55]}  Nc6 {[%clk 0:02:57]} 4. Ngf3 {[%clk 0:02:56]}  d5 {[%clk 0:02:57]} 5. g3 {[%clk 0:02:57]}  dxe4 {[%clk 0:02:57]} 6. dxe4 {[%clk 0:02:57]}  Bg4 {[%clk 0:02:57]} 7. Bg2 {[%clk 0:02:57]}  Bc5 {[%clk 0:02:48]} 8. O-O {[%clk 0:02:56]}  Qe7 {[%clk 0:02:48]} 9. c3 {[%clk 0:02:56]}  O-O-O {[%clk 0:02:48]} 10. Re1 {[%clk 0:02:53]}  h5 {[%clk 0:02:46]} 11. b4 {[%clk 0:02:50]}  Bb6 {[%clk 0:02:44]} 12. a4 {[%clk 0:02:49]}  a6 {[%clk 0:02:41]} 13. b5 {[%clk 0:02:48]}  Nb8 {[%clk 0:02:39]} 14. Qb3 {[%clk 0:02:46]}  a5 {[%clk 0:02:37]} 15. Nc4 {[%clk 0:02:39]}  Bxf3 {[%clk 0:02:23]} 16. Nxb6+ {[%clk 0:02:37]}  cxb6 {[%clk 0:02:24]} 17. Bxf3 {[%clk 0:02:38]}  Nbd7 {[%clk 0:02:24]} 18. Ba3 {[%clk 0:02:30]}  Nc5 {[%clk 0:02:22]} 19. Qc4 {[%clk 0:02:31]}  Kb8 {[%clk 0:02:20]} 20. Rad1 {[%clk 0:02:20]}  h4 {[%clk 0:02:19]} 21. Bg2 {[%clk 0:01:51]}  hxg3 {[%clk 0:02:15]} 22. hxg3 {[%clk 0:01:52]}  Rxd1 {[%clk 0:02:08]} 23. Rxd1 {[%clk 0:01:52]}  Rc8 {[%clk 0:02:08]} 24. Qe2 {[%clk 0:01:26]}  Qe6 {[%clk 0:02:07]} 25. Qc2 {[%clk 0:01:23]}  Qc4 {[%clk 0:02:06]} 26. Rd6 {[%clk 0:01:21]}  Nxa4 {[%clk 0:01:51]} 27. Bh3 {[%clk 0:01:03]}  Rc7 {[%clk 0:01:49]} 28. Rd8+ {[%clk 0:01:03]}  Ka7 {[%clk 0:01:49]} 29. Bd6 {[%clk 0:00:59]}  Nxc3 {[%clk 0:01:41]} 30. Bxc7 {[%clk 0:00:20]}  Qxc7 {[%clk 0:01:42]} 31. Bf1 {[%clk 0:00:17]}  Qxd8 {[%clk 0:01:36]} 32. Qxc3 {[%clk 0:00:18]}  Nxe4 {[%clk 0:01:36]} 33. Qxe5 {[%clk 0:00:17]}  Nf6 {[%clk 0:01:30]} 34. Bg2 {[%clk 0:00:17]}  Qd1+ {[%clk 0:01:24]} 35. Kh2 {[%clk 0:00:17]}  Ng4+ {[%clk 0:01:22]} 36. Kh3 {[%clk 0:00:09]}  Nxe5 {[%clk 0:01:23]} 37. Bf3 {[%clk 0:00:09]}  Qxf3 {[%clk 0:01:20]} 0-1


[Site "https://www.chess.com"]